[Event "1000IM Saint Louis 2022"]
[Site "Saint Louis"]
[Date "2022.07.20"]
[Round "4.1"]
[White "Cervantes Landeiro, Thalia"]
[Black "Nyzhnyk, Illya"]
[Result "0-1"]
[ECO "A53"]
[WhiteElo "2234"]
[BlackElo "2686"]
[Annotator "TA"]
[PlyCount "76"]
[EventDate "2022.07.20"]
[EventType "tourn"]
[EventCountry "USA"]
[SourceTitle "playchess.com"]
[Source "ChessBase"]
[SourceQuality "1"]
[TimeControl "5400+30"]

{[%evp 10,76,32,27,29,13,33,14,26,14,26,40,33,12,30,0,0,0,0,0,0,0,0,0,0,0,0,0,0,-16,0,-14,4,0,0,0,0,-55,-8,-61,0,0,0,0,0,0,0,0,0,0,0,-391,-396,-358,-394,-29971,-29972,-29970,-29973,-29972,-29973,-29970,-29967,-3069,-4027,-29976,-29977,-29993,-29994]} 1. d4 {[%emt 0:00:06]} Nf6 {[%emt 0:00:05]} 2. c4 {[%emt 0:00:07]} d6 {[%emt 0:00:04]} 3. Nc3 {[%emt 0:00:34]} Nbd7 {[%emt 0:00:04]} 4. e4 {[%emt 0:01:10]} e5 {[%emt 0:00:04]} 5. d5 {[%emt 0:00:39]} Nc5 {[%emt 0:00:50]} 6. f3 {[%emt 0:02:59]} a5 {[%emt 0:00:05] A53: Old Indian Defence without Nf3.} 7. Bd3 {[%emt 0:02:06]} Be7 {[%emt 0:01:17]} 8. Nge2 {[%emt 0:02:37]} Nfd7 {[%emt 0:00:52][%cal Of7f5,Bf6d7,Bd7c5,Bc5b3][%mdl 32] The position is equal.} 9. Be3 {[%emt 0:04:29]} Bg5 {[%emt 0:00:14]} 10. Bf2 {[%emt 0:01:31]} Nxd3+ {[%emt 0:00:17]} 11. Qxd3 {[%emt 0:00:10] [#]} b6 $146 {[%emt 0:00:02]} ({Predecessor:} 11... Nc5 12. Qc2 h5 13. h4 Bh6 14. Rg1 g6 15. g4 Bg7 16. g5 Bd7 17. O-O-O a4 18. Bxc5 dxc5 {0-1 (43) Poulin,M (2005)-Onkoud,A (2308) Montreal 2015}) 12. O-O {[%emt 0:03:07]} (12. h4 $5 {[%cal Rh4g5]} Bh6 13. b3 $11) 12... Nc5 {[%emt 0:00:03]} 13. Qc2 {[%emt 0:00:58]} Bd7 {[%emt 0:02:46]} 14. b3 {[%emt 0:02:41][%cal Bb2b3,Bb3b4][%mdl 32]} O-O {[%emt 0:02:16]} 15. a3 {[%emt 0:10:07]} a4 {[%emt 0:00:04]} 16. b4 {[%emt 0:00:36]} Nb3 {[%emt 0:00:03]} 17. Rad1 {[%emt 0:00:37]} f5 {[%emt 0:00:36]} 18. Qb2 {[%emt 0:12:27]} f4 {[%emt 0:00:49]} 19. Nc1 {[%emt 0:01:21]} Nxc1 {[%emt 0:00:12]} 20. Rxc1 {[%emt 0:00:12]} Rf6 {[%emt 0:00:06]} 21. c5 {[%emt 0:06:23]} Rh6 {[%emt 0:01:49]} 22. cxb6 {[%emt 0:04:09]} cxb6 {[%emt 0:00:04]} 23. Rfd1 {[%emt 0:10:46]} (23. b5 $1 $11) 23... Bh4 {[%emt 0:02:08]} (23... Qe8 $15 {should be considered.}) 24. Na2 {[%emt 0:05:59]} (24. Qe2 $11) 24... Qe8 {[%emt 0:09:46]} (24... b5 $15) 25. Bxh4 $1 $11 {[%emt 0:04:09]} (25. Bxb6 Qh5 26. Qe2 Bd8 27. Bxd8 Qxh2+ 28. Kf1 Rxd8 $19) 25... Rxh4 {[%emt 0:00:04]} 26. Rc7 {[%emt 0:02:52]} Rd8 {[%emt 0:00:04]} 27. Qc2 {[%emt 0:01:21]} Kf8 {[%emt 0:04:45]} 28. Qf2 {[%emt 0:03:48]} Rh6 {[%emt 0:02:41]} 29. Qxb6 {[%emt 0:03:14] Black must now prevent Rb7.} Qh5 $1 {[%emt 0:00:06]} 30. Rb7 $2 {[%emt 0:05:42][%mdl 8192]} (30. h3 $11 {and White is okay.}) 30... Qxh2+ $19 {[%emt 0:00:30]} 31. Kf1 {[%emt 0:00:03]} Bb5+ $1 {[%emt 0:00:29]} 32. Ke1 $2 {[%emt 0:06:58] [#]} (32. Kf2 $19 Qh4+ 33. Kg1) 32... Qg3+ {[%emt 0:00:12]} 33. Kd2 {[%emt 0:00:21]} Qxg2+ {[%emt 0:00:05]} 34. Kc1 {[%emt 0:00:34]} Rc8+ {[%emt 0:00:04]} 35. Rc7 {[%emt 0:00:10]} Rxc7+ {[%emt 0:00:04]} 36. Qxc7 {[%emt 0:00:11]} Qxa2 {[%emt 0:00:02]} 37. Qc8+ {[%emt 0:01:16]} Ke7 {[%emt 0:00:21]} 38. Qb7+ {[%emt 0:00:37]} Bd7 {[%emt 0:00:04] Weighted Error Value: White=0.54/Black=0.06 (flawless)} 0-1

[Event "1000IM Saint Louis 2022"]
[Site "Saint Louis"]
[Date "2022.07.20"]
[Round "4.2"]
[White "Kozelov, Roman"]
[Black "Altman, Joshua"]
[Result "1/2-1/2"]
[ECO "C10"]
[WhiteElo "2104"]
[BlackElo "2162"]
[Annotator "TA"]
[PlyCount "53"]
[EventDate "2022.07.20"]
[EventType "tourn"]
[EventCountry "USA"]
[SourceTitle "playchess.com"]
[Source "ChessBase"]
[SourceQuality "1"]
[TimeControl "5400+30"]

{[%evp 17,53,0,0,-4,-4,-36,-29,-35,0,-10,0,0,13,0,0,-6,0,0,0,0,0,0,0,0,0,0,0,0,0,0,6,7,4,0,7,0,0,0]} 1. e4 {[%emt 0:00:05]} e6 {[%emt 0:00:03]} 2. d4 {[%emt 0:00:04]} d5 {[%emt 0:00:03]} 3. Nc3 {[%emt 0:00:04]} Nf6 {[%emt 0:00:02]} 4. Bg5 {[%emt 0:00:14]} dxe4 {[%emt 0:00:04]} 5. Nxe4 {[%emt 0:00:16]} Nbd7 {[%emt 0:00:11]} 6. Nxf6+ {[%emt 0:01:20]} Nxf6 {[%emt 0:00:18]} 7. Nf3 {[%emt 0:00:07]} Be7 {[%emt 0:00:23]} 8. Bd3 {[%emt 0:00:19]} b6 {[%emt 0:02:06]} 9. Ne5 {[%emt 0:04:00]} Bb7 {[%emt 0:01:57]} 10. Bb5+ {[%emt 0:02:30] C10: French with 3 Nc3: Unusual Black 3rd moves and 3...dxe4.} c6 {[%emt 0:04:58]} 11. Bc4 {[%emt 0:11:54]} ({But not} 11. Nxc6 $2 Qd5 12. Bxf6 Bxf6 13. Na5+ Qxb5 $19) 11... O-O {[%emt 0:04:03]} 12. O-O {[%emt 0:03:32] [#] Black has an edge.} Qc7 $146 {[%emt 0:12:24]} (12... c5 {seems wilder.} 13. dxc5 Bxc5 14. Re1 h6) ({Predecessor:} 12... Nd7 13. Bxe7 Qxe7 14. Qe2 Nxe5 15. Qxe5 Rfd8 16. Rad1 Rac8 17. a4 c5 18. d5 Qh4 {½-½ (50) Koitka,J (1677)-Zebracki,T (1795) Leba 2009}) 13. Qe2 {[%emt 0:01:15] The position is equal.} Nd5 {[%emt 0:06:38]} 14. Bxe7 {[%emt 0:03:13]} Qxe7 {[%emt 0:01:13]} 15. Bxd5 {[%emt 0:01:34]} exd5 {[%emt 0:05:04]} 16. Rfe1 {[%emt 0:01:40]} Rae8 {[%emt 0:03:06] [#] Threatens to win with ...f6.} 17. Qd2 {[%emt 0:00:17][%cal Oe5g6] Black must now prevent Ng6!} Qd6 {[%emt 0:01:23] Against Ng6} 18. Re3 {[%emt 0:05:54]} f6 {[%emt 0:01:50]} 19. Nd3 {[%emt 0:00:22]} Bc8 {[%emt 0:25:26]} 20. Rae1 {[%emt 0:01:00]} Rxe3 {[%emt 0:00:34]} 21. Qxe3 {[%emt 0:01:24]} Bf5 {[%emt 0:03:09]} 22. Qe7 {[%emt 0:00:23]} Qxe7 {[%emt 0:00:35]} 23. Rxe7 {[%emt 0:00:05]} Bxd3 {[%emt 0:00:09]} 24. cxd3 {[%emt 0:00:01]} Rf7 $1 {[%emt 0:00:09]} 25. Re8+ {[%emt 0:00:05]} Rf8 {[%emt 0:00:03]} 26. Re7 {[%emt 0:04:37]} Rf7 $1 {[%emt 0:00:15]} 27. Re8+ {[%emt 0:00:04] Weighted Error Value: White=0.04 (flawless) /Black=0.03 (flawless)} 1/2-1/2

[Event "1000IM Saint Louis 2022"]
[Site "Saint Louis"]
[Date "2022.07.20"]
[Round "4.3"]
[White "Wang, Tianqi"]
[Black "Stefanov, Emil"]
[Result "1/2-1/2"]
[ECO "A01"]
[WhiteElo "2402"]
[BlackElo "2342"]
[Annotator "TA"]
[PlyCount "104"]
[EventDate "2022.07.20"]
[EventType "tourn"]
[EventCountry "USA"]
[SourceTitle "playchess.com"]
[Source "ChessBase"]
[SourceQuality "1"]
[TimeControl "5400+30"]

{[%evp 12,104,-8,-9,-17,-20,0,-30,-10,-47,-16,-27,-24,-36,-23,-19,-18,-53,-20,-46,-35,-24,-32,-35,21,7,12,-23,-23,-23,-12,-8,-11,-6,-14,-16,-19,-13,-11,-49,-33,-33,-32,-36,-33,-125,-124,-128,-123,-124,-63,-44,-45,-79,-91,-109,-45,-64,-61,-70,-36,-46,-21,-21,-22,-16,-15,-33,-27,-48,-40,-46,-31,-44,-50,-36,-16,-8,6,-8,-8,-8,0,0,0,-4,-4,-4,0,0,0,0,0,0,277]} 1. b3 {[%emt 0:00:12]} e5 {[%emt 0:00:36]} 2. Bb2 {[%emt 0:00:04]} Nc6 {[%emt 0:00:04]} 3. c4 {[%emt 0:00:08]} Nf6 {[%emt 0:00:12]} 4. e3 {[%emt 0:00:06]} d5 {[%emt 0:00:08]} 5. cxd5 {[%emt 0:00:04]} Nxd5 {[%emt 0:00:06]} 6. a3 {[%emt 0:00:03]} Bd6 {[%emt 0:02:04]} 7. Qc2 {[%emt 0:02:26]} Qe7 {[%emt 0:04:25] A01: Nimzowitsch-Larsen Opening.} 8. b4 {[%emt 0:00:32]} a6 {[%emt 0:00:07]} 9. Nc3 {[%emt 0:00:06]} Nxc3 {[%emt 0:02:42] Black has an edge.} 10. Bxc3 {[%emt 0:00:09]} O-O {[%emt 0:01:00] [#]} (10... Nd4 $5 {[%cal Rd4c2]} 11. Bxd4 exd4 $15) 11. Nf3 $146 {[%emt 0:00:33]} ({Predecessor:} 11. Bd3 f5 12. Nf3 Kh8 13. e4 f4 14. h3 Bd7 15. Be2 Rae8 16. d3 Rc8 17. O-O {0-1 (35) Constantinou,P (2268)-Rorrer,G (2204) Chess.com INT 2022}) 11... e4 {[%emt 0:04:13] Prevents Bd3.} 12. Nd4 {[%emt 0:00:11]} Nxd4 {[%emt 0:00:04]} 13. Bxd4 {[%emt 0:00:03]} a5 {[%emt 0:03:40]} 14. bxa5 {[%emt 0:03:26]} Rxa5 {[%emt 0:06:25]} 15. Qc3 {[%emt 0:01:26][%csl LRa5,LRg7]} Rg5 {[%emt 0:00:37]} (15... Re5 $5) 16. h4 {[%emt 0:00:20]} Rg4 {[%emt 0:00:03]} 17. Qb2 {[%emt 0:00:47]} Re8 {[%emt 0:07:55]} (17... h6 $15) 18. g3 $11 {[%emt 0:00:20]} Rg6 {[%emt 0:19:27]} 19. Bb5 {[%emt 0:01:01]} c6 {[%emt 0:00:52]} 20. Be2 {[%emt 0:00:19]} Be5 {[%emt 0:01:41]} (20... h6 {seems wilder.} 21. Bh5 Bg4 22. Bxg6 fxg6 23. Kf1 b5) 21. Bxe5 {[%emt 0:03:39]} Qxe5 {[%emt 0:00:08]} 22. Qxe5 {[%emt 0:00:03]} Rxe5 {[%emt 0:00:05]} 23. d4 {[%emt 0:00:03]} exd3 {[%emt 0:00:13]} 24. Bxd3 {[%emt 0:00:05]} Rd6 {[%emt 0:00:16]} 25. Be2 {[%emt 0:00:05]} Kf8 {[%emt 0:01:37]} 26. O-O {[%emt 0:01:28]} Rd2 {[%emt 0:03:21]} 27. Bf3 {[%emt 0:00:37]} Ke7 {[%emt 0:01:48]} 28. Rfd1 {[%emt 0:00:28]} (28. Rfb1 $15) 28... Rxd1+ $17 {[%emt 0:00:50]} 29. Rxd1 {[%emt 0:03:31][%mdl 4096] Endgame KRB-KRB} Ra5 {[%emt 0:01:11]} 30. Rd3 {[%emt 0:00:06]} Bf5 {[%emt 0:01:51]} (30... c5 $17 31. Rc3 b6) 31. Rb3 $15 {[%emt 0:00:11]} Ra7 {[%emt 0:00:08]} 32. Kg2 {[%emt 0:03:34]} Be6 {[%emt 0:01:57]} 33. Rc3 {[%emt 0:00:25]} Ra4 {[%emt 0:05:46]} ({Black should play} 33... Kd6 $17) 34. Bd1 {[%emt 0:01:59]} Ra5 {[%emt 0:00:06]} 35. g4 {[%emt 0:00:14]} h6 {[%emt 0:00:44]} 36. f4 {[%emt 0:00:20]} Rd5 {[%emt 0:00:13]} 37. Bf3 {[%emt 0:01:05]} Rd2+ {[%emt 0:00:05]} 38. Kg3 {[%emt 0:00:02]} f6 {[%emt 0:01:13]} 39. f5 {[%emt 0:03:08]} Bd7 {[%emt 0:02:03]} 40. Kf4 {[%emt 0:00:12]} Kd6 $1 {[%emt 0:04:01]} 41. g5 {[%emt 0:01:08]} b5 {[%emt 0:00:37]} 42. gxh6 {[%emt 0:04:52]} gxh6 {[%emt 0:00:05]} 43. Rc1 {[%emt 0:00:04]} c5 {[%emt 0:07:37]} 44. Rg1 $1 {[%emt 0:00:28] The position is equal.} Rh2 {[%emt 0:07:27]} 45. Rg6 {[%emt 0:06:36]} Rxh4+ {[%emt 0:02:57]} 46. Kg3 {[%emt 0:03:41]} Rh3+ {[%emt 0:01:40]} 47. Kg2 $1 {[%emt 0:07:20]} (47. Kxh3 $2 {loses.} Bxf5+ 48. Rg4 h5 $19) 47... Rh4 {[%emt 0:05:51] [#] Threatens to win with ...c4.} 48. Rxf6+ {[%emt 0:03:40]} Ke5 {[%emt 0:00:04]} 49. Rb6 {[%emt 0:02:09]} Kxf5 {[%emt 0:00:22]} 50. Kg3 {[%emt 0:02:33]} Ra4 {[%emt 0:00:04] aiming for ...h5.} 51. Rb7 {[%emt 0:07:10]} Be8 {[%emt 0:02:45]} 52. Rb8 {[%emt 0:01:10]} Ke5 $2 {[%emt 0:00:30][%mdl 40960] Weighted Error Value: White=0.10 (very precise) /Black=0.11 (very precise) . An unexpected result.} 1/2-1/2

[Event "1000IM Saint Louis 2022"]
[Site "Saint Louis"]
[Date "2022.07.20"]
[Round "4.4"]
[White "Tokhirjonova, Gulrukhbegim"]
[Black "Williams, Justus"]
[Result "0-1"]
[ECO "B41"]
[WhiteElo "2329"]
[BlackElo "2390"]
[Annotator "TA"]
[PlyCount "98"]
[EventDate "2022.07.20"]
[EventType "tourn"]
[EventCountry "USA"]
[SourceTitle "playchess.com"]
[Source "ChessBase"]
[SourceQuality "1"]
[TimeControl "5400+30"]

{[%evp 12,98,33,7,56,55,64,57,55,55,60,34,51,66,63,65,64,70,85,85,92,67,143,149,125,131,144,132,150,175,192,159,164,155,187,-11,-8,-8,-9,-8,0,-482,-456,-560,-556,-583,-585,-597,-555,-692,-691,-735,-737,-839,-831,-831,-820,-1608,-1581,-1470,-1480,-1448,-1399,-1842,-1545,-29952,-29951,-11933,-9126,-29966,-6796,-29972,-29973,-29969,-29974,-29977,-29978,-29978,-29979,-29979,-29980,-29980,-29980,-29980,-29981,-29982,-29983,-29988,-29989]} 1. e4 {[%emt 0:02:36]} c5 {[%emt 0:00:31]} 2. Nf3 {[%emt 0:00:39]} e6 {[%emt 0:00:29]} 3. d4 {[%emt 0:01:15]} cxd4 {[%emt 0:00:09]} 4. Nxd4 {[%emt 0:00:21]} a6 {[%emt 0:00:15]} 5. c4 {[%emt 0:02:14]} Nf6 {[%emt 0:01:41]} 6. Nc3 {[%emt 0:00:39]} Qc7 {[%emt 0:00:21]} 7. f4 {[%emt 0:04:57]} d6 {[%emt 0:02:12] Inhibits e5. B41: Sicilian: Kan Variation: 5 c4.} (7... Bb4 $11) 8. Be2 $14 {[%emt 0:01:22]} b6 {[%emt 0:02:13]} 9. Be3 {[%emt 0:04:15]} Bb7 {[%emt 0:01:24] White is slightly better.} 10. Bf3 {[%emt 0:01:30]} Nbd7 {[%emt 0:01:23]} 11. O-O {[%emt 0:01:44]} ({Much worse is} 11. Qa4 Rc8 $15) 11... Rc8 {[%emt 0:02:24]} 12. Rc1 {[%emt 0:00:51]} Be7 {[%emt 0:11:03]} 13. b3 {[%emt 0:01:59][%cal Bb2b3,Bb3b4][%mdl 32]} Nc5 {[%emt 0:05:32]} 14. Qc2 {[%emt 0:01:13]} O-O {[%emt 0:00:58]} 15. g4 {[%emt 0:05:30]} h6 {[%emt 0:07:47] [#]} 16. h4 $146 {[%emt 0:04:18]} ({Predecessor:} 16. Kh1 Qb8 17. Qg2 Qa8 18. g5 hxg5 19. b4 g4 20. bxc5 gxf3 21. Nxf3 Nxe4 22. Na4 {0-1 (39) Zur,J (1833)-Kornrumpf,J (2020) Berlin 2006}) 16... Nh7 {[%emt 0:02:29]} (16... h5 $14) 17. b4 $16 {[%emt 0:07:14]} Nd7 {[%emt 0:01:24]} 18. g5 {[%emt 0:00:46]} hxg5 {[%emt 0:08:02]} 19. hxg5 {[%emt 0:00:32]} e5 {[%emt 0:00:47]} (19... Qxc4 $2 20. Qd2 Qxb4 21. Nd5 $1 {[%mdl 512]} Qxd2 22. Nxe7+ Kh8 23. Bxd2 Rxc1 24. Rxc1 $18) 20. Nf5 {[%emt 0:01:09]} Qd8 {[%emt 0:00:26]} 21. Qg2 {[%emt 0:04:05]} exf4 {[%emt 0:06:29]} 22. Bxf4 {[%emt 0:13:44]} g6 {[%emt 0:01:10][%cal Re7g5] [#]} 23. Nxd6 $2 {[%emt 0:11:25]} ({White must play} 23. Kf2 $1 $18 {[%cal Of1h1] Strongly threatening Rh1!} gxf5 (23... Bxg5 24. Rh1) 24. Rh1) 23... Bxd6 $11 {[%emt 0:02:09]} 24. Bxd6 {[%emt 0:00:02]} Re8 {[%emt 0:00:30]} 25. Bf4 {[%emt 0:03:57] aiming for Nd5. This bishop pair is nice.} Rxc4 {[%emt 0:00:47]} 26. Nd5 $2 {[%emt 0:01:12][%mdl 8192] Black converts the advantage convincingly.} (26. Qg3 $11 {and White stays safe.}) 26... Bxd5 $19 {[%emt 0:00:19]} 27. Rxc4 {[%emt 0:02:46]} Bxc4 {[%emt 0:00:02]} 28. Rc1 {[%emt 0:00:53]} b5 {[%emt 0:00:19] And now ...Ne5 would win.} 29. Rd1 {[%emt 0:03:14]} Qb6+ {[%emt 0:01:26]} 30. Kh2 {[%emt 0:00:48]} Ne5 {[%emt 0:00:16] White must now prevent ...Nd3.} 31. Be2 {[%emt 0:01:22]} Qe6 {[%emt 0:01:05]} 32. Kg3 {[%emt 0:01:57]} Bxe2 {[%emt 0:02:11]} 33. Qxe2 {[%emt 0:00:08]} Rc8 {[%emt 0:00:18]} 34. Rd5 {[%emt 0:01:15]} Rc3+ {[%emt 0:01:38]} 35. Kf2 {[%emt 0:00:24]} Rf3+ {[%emt 0:02:39]} 36. Qxf3 {[%emt 0:00:31]} Nxf3 {[%emt 0:00:03]} 37. Kxf3 {[%emt 0:00:07]} f6 {[%emt 0:00:14]} 38. Ke3 {[%emt 0:03:37]} Nxg5 {[%emt 0:00:32]} 39. Bxg5 {[%emt 0:00:15]} fxg5 {[%emt 0:00:03]} 40. Rxg5 {[%emt 0:00:10][%mdl 4096] Endgame KQ-KR} Kf7 {[%emt 0:00:56]} 41. Rd5 {[%emt 0:00:12]} Qh3+ {[%emt 0:01:27] Black mates.} 42. Kd4 {[%emt 0:00:22]} Qa3 {[%emt 0:00:11][%csl LRa2,LRb4]} 43. Kc5 {[%emt 0:00:38]} Qxa2 {[%emt 0:00:26]} 44. Rd7+ {[%emt 0:00:07]} Ke6 {[%emt 0:00:18]} 45. Rd6+ {[%emt 0:00:08]} Ke5 {[%emt 0:00:39]} 46. Rxg6 {[%emt 0:00:23]} Qc4+ {[%emt 0:00:04]} 47. Kb6 {[%emt 0:00:17]} Qxb4 {[%emt 0:00:02]} 48. Kxa6 {[%emt 0:00:11]} Qa4+ {[%emt 0:00:09]} 49. Kb7 {[%emt 0:00:08]} Qxe4+ {[%emt 0:00:08] Weighted Error Value: White=0.74/Black=0.11 (very precise)} 0-1

[Event "1000IM Saint Louis 2022"]
[Site "Saint Louis"]
[Date "2022.07.20"]
[Round "4.5"]
[White "Sethuraman, Sandeep"]
[Black "Proleiko, Julian"]
[Result "1-0"]
[ECO "D36"]
[WhiteElo "2305"]
[BlackElo "2238"]
[Annotator "TA"]
[PlyCount "105"]
[EventDate "2022.07.20"]
[EventType "tourn"]
[EventCountry "USA"]
[SourceTitle "playchess.com"]
[Source "ChessBase"]
[SourceQuality "1"]
[TimeControl "5400+30"]

{[%evp 12,105,15,14,13,19,16,18,16,12,10,0,20,16,9,11,8,17,14,0,22,14,104,105,102,94,146,141,162,162,162,166,217,222,210,203,260,273,268,264,287,252,314,193,273,276,274,214,200,60,220,191,175,142,178,153,158,154,156,146,192,190,226,224,220,215,252,157,240,227,279,199,281,281,318,318,318,318,318,318,318,318,355,310,662,649,1269,1269,1154,1146,947,947,1132,584,440,396]} 1. d4 {[%emt 0:00:02]} d5 {[%emt 0:00:03]} 2. c4 {[%emt 0:00:07]} e6 {[%emt 0:00:03]} 3. Nc3 {[%emt 0:00:07]} Nf6 {[%emt 0:00:04]} 4. cxd5 {[%emt 0:00:06]} exd5 {[%emt 0:00:04]} 5. Bg5 {[%emt 0:00:10]} c6 {[%emt 0:00:02]} 6. Qc2 {[%emt 0:00:07]} Bd6 {[%emt 0:00:07]} 7. e3 {[%emt 0:01:25]} O-O {[%emt 0:00:05] D36: Queen's Gambit Declined: Exchange Variation: Main line (5 Bg5 c6 6 Qc2).} 8. Bd3 {[%emt 0:01:47][%cal Od3h7] Black must now prevent Bxh7+!} h6 {[%emt 0:00:04]} 9. Bh4 {[%emt 0:00:50]} Re8 {[%emt 0:00:07] The position is equal.} 10. Rb1 {[%emt 0:09:20]} a5 {[%emt 0:00:09]} 11. Nge2 {[%emt 0:03:42]} Na6 {[%emt 0:00:06]} 12. a3 $1 {[%emt 0:01:16] Inhibits Nb4.} Nc7 {[%emt 0:00:06]} 13. h3 {[%emt 0:04:25]} Ne6 {[%emt 0:00:29]} 14. O-O {[%emt 0:02:04] [#]} Ng5 $146 {[%emt 0:00:03]} ({Predecessor:} 14... Bd7 15. b4 b5 16. e4 axb4 17. axb4 dxe4 18. Nxe4 Be7 19. Bg3 Nd5 20. Nd6 Bxd6 21. Bxd6 {½-½ (63) Vidit,S (2723)-Xiong,J (2685) Chess.com INT 2022}) 15. Bg3 {[%emt 0:07:15]} Bf8 {[%emt 0:02:53]} 16. Be5 {[%emt 0:05:09]} Nxh3+ {[%emt 0:19:11]} 17. gxh3 $16 {[%emt 0:02:45]} Bxh3 {[%emt 0:00:03]} 18. Rfe1 {[%emt 0:13:45]} Ng4 {[%emt 0:01:05]} (18... Bd7 $142 19. Bf5 Qc8 20. Bxd7 Nxd7) 19. Bg3 $1 {[%emt 0:07:30]} (19. Bh7+ $6 Kh8 20. Bg3 Nxe3 21. fxe3 Qg5 $11) 19... Bd6 {[%emt 0:04:04][%cal Og4e3]} 20. Nf4 {[%emt 0:03:39]} Bxf4 {[%emt 0:00:42]} 21. Bxf4 {[%emt 0:05:20]} ({Don't take} 21. exf4 Qf6 $16) 21... Qh4 {[%emt 0:00:45]} (21... Qf6 $142) 22. Qe2 $1 $18 {[%emt 0:02:20]} Re6 {[%emt 0:03:20][%cal Og4e3] [#]} 23. Qf3 {[%emt 0:02:24]} Rae8 {[%emt 0:03:34]} 24. Bg3 {[%emt 0:03:35]} Qh5 {[%emt 0:01:19]} 25. Qf5 {[%emt 0:05:02]} g5 {[%emt 0:05:56] ...Nf6 is the strong threat.} 26. Be2 {[%emt 0:04:30]} Kg7 {[%emt 0:07:54]} 27. Qd3 {[%emt 0:03:27]} ({Not} 27. Bd3 $2 Nf6 28. Be2 Bxf5 $19) 27... Qg6 {[%emt 0:02:02]} (27... R6e7 $142 28. Qf5 Qg6 29. Qxg6+ (29. Bxg4 Qxf5 30. Bxf5 Bxf5 $16) 29... fxg6) 28. Qxg6+ {[%emt 0:00:16]} Kxg6 {[%emt 0:00:03]} 29. b4 {[%emt 0:02:47]} axb4 {[%emt 0:00:04]} 30. axb4 {[%emt 0:00:04]} (30. Bd3+ $18 Kg7 31. Rxb4) 30... h5 $2 {[%emt 0:05:25] Black cannot hold the game after this.} ({Black should try} 30... Nxe3 $1 $14 31. fxe3 Rxe3) 31. Na4 {[%emt 0:01:55]} h4 {[%emt 0:00:11]} 32. Bh2 {[%emt 0:00:38]} Rf6 {[%emt 0:01:42]} 33. Bd3+ {[%emt 0:00:59]} Kh5 {[%emt 0:00:33]} 34. Rb2 {[%emt 0:00:44]} Nxh2 {[%emt 0:10:05]} 35. Kxh2 {[%emt 0:00:01]} Bg4 {[%emt 0:01:47]} (35... Bc8 $16 36. b5 g4) 36. b5 {[%emt 0:01:39]} Rg8 {[%emt 0:01:53]} 37. bxc6 {[%emt 0:02:54]} bxc6 {[%emt 0:00:05]} 38. Nc5 {[%emt 0:00:04]} Be6 {[%emt 0:01:10]} 39. Bf1 {[%emt 0:01:13]} g4 {[%emt 0:00:12] [#]} (39... Bf5 $16 {might work better.} 40. Bd3 Ra8 41. Bxf5 Rxf5) 40. Nd3 $1 {[%emt 0:00:43]} Rf3 {[%emt 0:02:38]} 41. Nf4+ {[%emt 0:00:38]} Kh6 {[%emt 0:00:08]} (41... Kg5 $142 42. Bg2 g3+ 43. fxg3 Rxg3) 42. Bg2 {[%emt 0:02:24]} g3+ {[%emt 0:00:57]} 43. fxg3 {[%emt 0:00:34]} Rfxg3 {[%emt 0:00:05]} 44. Nxe6 {[%emt 0:00:52]} fxe6 {[%emt 0:00:01]} 45. Bh3 {[%emt 0:00:16]} R8g6 {[%emt 0:02:28]} 46. Rc2 {[%emt 0:00:39]} Rf6 {[%emt 0:00:16]} 47. Ree2 {[%emt 0:00:34]} Rff3 $2 {[%emt 0:00:27]} (47... e5 48. dxe5 Rff3) 48. Bxe6 {[%emt 0:00:35] White is clearly winning.} Rxe3 {[%emt 0:00:03]} 49. Rxe3 {[%emt 0:00:05]} Rxe3 {[%emt 0:00:03]} 50. Rxc6 {[%emt 0:00:07]} Kg5 {[%emt 0:00:42]} 51. Bxd5 {[%emt 0:00:22]} Rd3 {[%emt 0:00:16]} 52. Rc4 {[%emt 0:00:16]} Rd2+ {[%emt 0:00:30]} 53. Bg2 {[%emt 0:00:42] Weighted Error Value: White=0.14 (very precise) /Black=0.43} 1-0